bitfinex-derivatives/quotes_ETHF0:USTF0_20250704
["timestamp","ask_amount","ask_price","bid_price","bid_amount"]
[1751646211588,0.80597,2480.6,2480.5,0.806]
[1751646212594,0.80603,2480.5,2480.4,0.80602]
[1751646212797,0.80604,2480.4,2480.3,4.6257]
[1751646212990,0.80604,2480.4,2480.3,3.2078]
[1751646213491,0.80604,2480.4,2480.2,1.55129]
[1751646213492,0.80607,2480.3,2480.2,1.55129]
[1751646213687,0.80607,2480.3,2480.2,4.75909]
[1751646213888,0.80617,2480.0,2479.9,3.2078]
[1751646214092,0.80616,2480.1,2480.0,0.80614]
[1751646214689,1.52694,2480.2,2480.1,0.80614]
[1751646214883,0.80614,2480.2,2480.1,0.80614]
[1751646215299,0.80609,2480.3,2480.2,0.80607]
[1751646215493,3.2078,2480.6,2480.1,3.2078]
[1751646215693,3.2078,2480.6,2480.2,1.3403]
[1751646215890,5.22238,2481.1,2480.4,5.2229]
[1751646216091,0.80589,2480.9,2480.8,0.80587]
[1751646216287,3.2078,2481.5,2480.8,2.01474]
[1751646216491,3.2078,2482.0,2481.4,3.08660645]
[1751646216791,0.80568,2481.5,2481.4,3.89230645]
[1751646217298,0.80567,2481.6,2481.5,0.80568]
[1751646217597,0.80568,2481.5,2481.4,3.89229645]
[1751646217786,0.80568,2481.5,2481.4,3.08660645]
[1751646218897,0.80568,2481.5,2481.4,3.89231645]
[1751646219092,0.80568,2481.5,2481.4,3.08660645]
[1751646219599,1.58778,2481.6,2481.5,0.80568]
[1751646219798,0.80568,2481.5,2481.4,3.08660645]
[1751646221401,0.80584,2481.0,2480.9,3.2078]
[1751646223200,0.80588,2480.9,2480.6,3.2078]
[1751646223504,0.80594,2480.7,2480.6,3.2078]
[1751646224701,2.21134,2480.7,2480.6,3.2078]
[1751646225008,0.80594,2480.7,2480.6,3.2078]
[1751646227302,3.2078,2481.2,2480.6,3.2078]
[1751646227504,0.80594,2480.7,2480.6,3.2078]
[1751646227901,0.80593,2480.8,2480.7,0.80591]
[1751646228606,0.80594,2480.7,2480.6,4.01375]
[1751646229510,0.80594,2480.7,2480.6,3.2078]
[1751646229711,0.80593,2480.8,2480.7,0.80591]
[1751646230005,2.19272374,2480.8,2480.7,0.80591]
[1751646231313,2.19333105,2480.8,2480.7,0.80591]
[1751646231509,0.80594,2480.7,2480.6,3.2078]
[1751646232509,40.8,2481.0,2480.8,0.80588]
[1751646232812,0.80594,2480.8,2480.7,0.80592]
[1751646233011,2.19370875,2480.8,2480.7,0.80592]
[1751646233606,1.38776875,2480.8,2480.7,2.16392]
[1751646233910,0.02033698,2480.8,2480.7,2.16392]
[1751646234207,0.82624698,2480.8,2480.7,2.16392]
[1751646234407,0.80594,2480.7,2480.6,4.01376]
[1751646234712,0.80594,2480.7,2480.6,4.01377]
[1751646235309,0.83644161,2480.7,2480.6,4.01377]
[1751646235511,0.83644161,2480.7,2480.6,5.32127]
[1751646235712,0.03050161,2480.7,2480.6,5.32127]
[1751646236102,0.80591,2480.9,2480.8,0.76881044]
[1751646236308,0.80594,2480.8,2480.7,0.80592]
[1751646236713,2.19512663,2480.8,2480.7,0.80592]
[1751646237013,1.38918663,2480.8,2480.7,0.80592]
[1751646237414,0.80586,2481.0,2480.9,0.80582]
[1751646237712,2.19582156,2481.2,2481.1,0.80578]
[1751646237916,2.19581847,2481.2,2481.1,0.80578]
[1751646239011,1.39000847,2481.2,2481.1,0.80578]
[1751646239915,2.76509,2481.7,2481.0,3.37631]
[1751646240114,2.76509,2481.7,2481.3,3.2078]
[1751646240115,0.80574,2481.4,2481.3,3.2078]
[1751646240516,2.19623026,2481.4,2481.3,3.2078]
[1751646241015,2.01458,2481.1,2480.6,1.4426]
[1751646241216,0.80594,2480.7,2480.6,1.4426]
[1751646242321,0.80601,2480.5,2480.4,1.54053]
[1751646243020,0.80599,2480.7,2480.6,0.80595]
[1751646243317,0.80598,2480.6,2480.5,1.4426]
[1751646243522,0.80597,2480.7,2480.6,0.80594]
[1751646244022,0.80598,2480.6,2480.5,2.24859]
[1751646244213,2.19350711,2480.6,2480.5,2.24859]
[1751646244612,1.38752711,2480.6,2480.5,2.24859]
[1751646244819,0.80592,2480.8,2480.7,0.80595]
[1751646245020,2.20580391,2480.8,2480.7,0.80595]
[1751646245218,2.20580391,2480.8,2480.5,6.66542]
[1751646245219,0.80598,2480.6,2480.5,4.6504]
[1751646245420,1.38753935,2480.6,2480.5,1.4426]
[1751646245619,0.80597,2480.7,2480.6,0.79054769]
[1751646245816,2.19382223,2480.7,2480.6,0.79054769]
[1751646246626,1.38785223,2480.7,2480.4,0.7345]
[1751646246818,3.2078,2480.9,2480.4,0.7345]
[1751646246819,1.38785223,2480.6,2480.4,0.7345]
[1751646247125,2.19386223,2480.5,2480.4,0.7345]
[1751646247329,1.38785223,2480.5,2480.2,3.2078]
[1751646247622,1.38785223,2480.4,2480.3,0.80608]
[1751646247830,2.19389223,2480.4,2480.3,2.15888]
[1751646248023,2.19389223,2480.4,2480.3,0.80608]
[1751646248223,1.40020323,2480.4,2480.3,0.80608]
[1751646248625,0.012351,2480.4,2480.3,2.91098]
[1751646248822,4.79803,2480.8,2480.7,0.79051125]
[1751646249022,6.18782245,2480.8,2480.7,0.79051125]
[1751646249522,2.17409245,2480.8,2480.7,0.79051125]
[1751646250027,2.98000245,2480.8,2480.7,0.79051125]
[1751646250229,2.17409245,2480.8,2480.7,0.79051125]
[1751646250729,2.98000245,2480.8,2480.7,0.79051125]
[1751646251028,1.38979245,2480.8,2480.7,0.79051125]
[1751646251632,0.80574,2481.4,2481.3,0.80572]
[1751646251825,1.39222808,2481.4,2481.3,0.80572]
[1751646252025,1.39222808,2481.4,2481.3,4.01352]
[1751646252221,1.39222808,2481.4,2481.3,0.80572]
[1751646252628,1.39222808,2481.4,2481.3,2.15712]
[1751646253227,2.19794808,2481.4,2481.3,3.2078]
[1751646253423,2.22231812,2481.4,2481.3,3.2078]
[1751646253628,3.43094812,2481.4,2481.0,3.2078]
[1751646253928,0.80582,2481.1,2481.0,3.2078]
[1751646254333,2.19804808,2481.1,2481.0,3.2078]
[1751646254534,0.80585,2481.0,2480.9,0.80586]
[1751646254833,2.19807808,2481.0,2480.9,0.80586]
[1751646255236,0.80585,2481.0,2480.9,0.80586]
[1751646255529,0.83022004,2481.0,2480.9,0.80586]
[1751646255936,2.22088165,2481.0,2480.9,0.80586]
[1751646256130,1.41503165,2481.0,2480.9,0.80586]
[1751646256330,0.02437004,2481.0,2480.9,2.10896]
[1751646256636,0.80588,2480.9,2480.7,3.9538]
[1751646256832,0.83024004,2481.0,2480.9,0.80588]
[1751646257029,0.02437004,2481.0,2480.9,0.80588]
[1751646257231,2.22087724,2481.0,2480.9,0.80588]
[1751646257431,0.02437004,2481.0,2480.9,0.80588]
[1751646259132,0.83022004,2481.0,2480.9,0.80588]
[1751646259533,0.02437004,2481.0,2480.9,0.80588]
[1751646260441,0.02437004,2481.0,2480.9,5.80588]
[1751646262134,12.176,2481.8,2481.4,0.80571]
[1751646262135,0.80565,2481.7,2481.4,0.80571]
[1751646262340,0.80573,2481.4,2481.3,0.80572]
[1751646263040,0.8057,2481.5,2481.4,0.80567]
[1751646263341,0.80567,2481.6,2481.5,0.80569]
[1751646263538,2.20661565,2481.6,2481.5,0.80569]
[1751646263738,1.40094565,2481.6,2481.5,0.80569]
[1751646264238,1.40471544,2481.6,2481.5,0.80569]
[1751646264442,2.21036544,2481.6,2481.5,0.80569]
[1751646264637,0.82072916,2481.6,2481.5,0.80569]
[1751646264839,0.82449895,2481.6,2481.5,0.80569]
[1751646265147,0.82452895,2481.6,2481.5,0.80569]
[1751646265440,0.82829874,2481.6,2481.5,0.80569]
[1751646265834,0.83206853,2481.6,2481.5,0.80569]
[1751646266244,0.83583832,2481.6,2481.5,0.80569]
[1751646266743,0.83960811,2481.6,2481.5,0.80569]
[1751646267145,0.03392811,2481.6,2481.5,0.80569]
[1751646267340,0.03392811,2481.6,2481.5,4.01349]
[1751646267539,0.83957811,2481.6,2481.5,4.01349]
[1751646267745,0.03392811,2481.6,2481.5,4.01349]
[1751646268445,2.74586,2482.4,2482.3,0.80543]
[1751646268446,1.53771,2482.4,2482.3,0.80543]
[1751646268648,3.2078,2482.5,2482.4,0.80539]
[1751646268851,1.38657064,2482.5,2482.4,9.01319]
[1751646269153,0.80521,2483.0,2482.9,0.80523]
[1751646269350,1.38590893,2483.1,2482.7,5.221]
[1751646269549,3.84617167,2483.3,2482.9,0.80523]
[1751646269550,1.38590893,2483.0,2482.9,0.80523]
[1751646269754,3.2078,2483.5,2483.3,0.80508]
[1751646269952,0.80514,2483.2,2483.1,0.80515]
[1751646270151,0.80514,2483.2,2483.0,6.17398]
[1751646270354,0.8052,2483.0,2482.9,0.8052]
[1751646270950,0.80519,2483.1,2483.0,0.8052]
[1751646271152,0.80518,2483.1,2482.8,1.3862]
[1751646271348,0.80526,2482.8,2482.7,0.7748]
[1751646271557,0.02131299,2482.8,2482.7,1.5801]
[1751646271751,0.02131299,2482.8,2482.7,2.9118]
[1751646271946,0.02131299,2482.8,2482.7,7.9118]
[1751646272159,0.02131299,2482.8,2482.7,2.1065]
[1751646272358,0.02131299,2482.8,2482.7,2.9118]
[1751646272563,0.82657299,2482.8,2482.7,2.9118]
[1751646272757,0.02131299,2482.8,2482.7,2.9118]
[1751646273659,5.02131299,2482.8,2482.5,0.19820916]
[1751646273857,1.4503,2482.7,2481.8,2.01398]
[1751646274160,3.2078,2482.5,2482.4,0.80539]
[1751646274357,3.2078,2482.5,2482.2,1.402]
[1751646274662,3.2078,2482.5,2482.4,0.78407701]
[1751646274856,0.721,2482.7,2482.3,0.7281]
[1751646275160,0.80539,2482.4,2482.3,0.7281]
[1751646275360,4.01319,2482.5,2482.4,0.80539]
[1751646275557,3.2078,2482.5,2482.4,0.80539]
[1751646275863,3.2078,2482.5,2482.4,2.94589]
[1751646276557,0.80534,2482.6,2482.5,0.80535]
[1751646276762,0.80533,2482.6,2482.5,0.80536]
[1751646276958,0.80533,2482.6,2482.5,1.3866]
[1751646277158,0.80533,2482.6,2482.5,2.19196]
[1751646277361,2.01338,2482.6,2482.1,0.80548]
[1751646277559,0.80552,2482.0,2481.9,4.01333]
[1751646277764,0.80551,2482.1,2482.0,0.80552]
[1751646277957,0.80551,2482.1,2481.9,3.2078]
[1751646277958,7.33623,2482.5,2481.9,3.2078]
[1751646278461,3.977,2482.5,2482.0,1.3866]
[1751646278657,3.2078,2482.8,2482.1,2.01373]
[1751646278861,0.8053,2482.7,2482.6,0.80531]
[1751646279163,4.01306,2482.8,2482.7,0.8053]
[1751646279361,0.80534,2482.6,2482.5,0.80534]
[1751646279560,0.84977518,2482.6,2482.5,0.80534]
[1751646279861,0.80538,2482.5,2482.4,0.80537]
[1751646280051,4.01318,2482.5,2482.4,0.80537]
[1751646280251,3.2078,2482.5,2482.4,0.80537]
[1751646280455,4.01316,2482.5,2482.4,0.80537]
[1751646280659,3.25223518,2482.5,2482.4,0.80537]
[1751646280861,4.05759518,2482.5,2482.4,0.80537]
[1751646281063,3.25223518,2482.5,2482.4,0.80537]
[1751646281256,3.25223518,2482.5,2482.4,0.80539]
[1751646281453,0.04443518,2482.5,2482.4,0.80539]
[1751646281657,3.25223518,2482.5,2482.4,0.80539]
[1751646282059,0.04443518,2482.5,2482.4,0.80539]
[1751646282259,0.0552411,2482.5,2482.2,3.40023]
[1751646282464,0.0552411,2482.5,2482.4,0.80539]
[1751646282963,0.0552411,2482.5,2482.4,3.01509]
[1751646283161,0.0552411,2482.5,2482.4,8.01509]
[1751646283361,3.2078,2483.7,2482.5,4.02682]
[1751646283561,3.2078,2483.7,2483.6,0.805]
[1751646283865,3.2078,2483.7,2483.2,2.01284]
[1751646284067,3.2078,2483.7,2483.6,0.805]
[1751646285365,4.01277,2483.7,2483.6,0.805]
[1751646285560,3.2078,2483.7,2483.6,0.805]
[1751646286167,0.80501,2483.6,2483.5,0.80502]
[1751646286464,0.80501,2483.6,2483.3,2.1698]
[1751646286465,3.2078,2483.7,2483.6,0.805]
[1751646286854,4.01279,2483.7,2483.6,0.805]
[1751646287366,0.80515,2483.2,2482.7,0.8053]
[1751646287570,3.2078,2482.8,2482.4,14.983]
[1751646287764,3.2078,2482.8,2482.5,0.80536]
[1751646287963,0.80531,2482.7,2482.5,0.80536]
[1751646288160,1.3422,2483.1,2482.5,0.80536]
[1751646288161,3.2078,2483.2,2482.8,2.01315]
[1751646288365,3.9493,2483.6,2482.9,2.01308]
[1751646288567,3.9493,2483.6,2483.1,5.22071]
[1751646288864,0.80497,2483.7,2483.2,3.40974]
[1751646289070,2.17513413,2483.6,2483.5,0.80503]
[1751646289266,1.37011413,2483.6,2483.5,0.80503]
[1751646289568,4.01277,2483.7,2483.5,0.80501]
[1751646289869,0.805,2483.6,2483.5,0.80501]
[1751646290064,4.01279,2483.7,2483.6,0.805]
[1751646290469,3.2078,2483.7,2483.6,0.805]
[1751646290672,4.01279,2483.7,2483.6,0.805]
[1751646290972,3.2078,2483.7,2483.6,0.805]
[1751646291367,2.35727167,2484.5,2483.8,2.01233]
[1751646291567,1.37174365,2484.4,2483.9,4.5527]
[1751646291762,1.37169148,2484.3,2484.2,0.80481]
[1751646291971,4.7751,2484.6,2484.5,0.80471]
[1751646292169,5.34213352,2484.6,2484.5,0.80471]
[1751646292371,5.34213352,2484.6,2484.4,0.80472]
[1751646292672,1.37173352,2484.5,2484.4,0.80472]
[1751646292864,2.18871575,2484.5,2484.4,0.80472]
[1751646293376,2.18873575,2484.5,2484.1,1.3607]
[1751646293564,0.81698223,2484.5,2484.4,0.80474]
[1751646293768,2.18394295,2484.5,2484.4,0.80474]
[1751646293967,1.37923295,2484.5,2484.4,0.80474]
[1751646294163,1.37923295,2484.5,2484.2,0.80479]
[1751646294370,2.17173072,2484.4,2484.2,0.80479]
[1751646294574,0.80478,2484.3,2484.2,0.80479]
[1751646294764,0.01227223,2484.3,2483.9,5.98195]
[1751646294967,0.01227223,2484.3,2484.2,0.80481]
[1751646295362,0.01227223,2484.3,2484.2,4.01261]
[1751646295571,4.0037,2485.0,2484.9,0.80458]
[1751646295771,6.11045861,2485.0,2484.8,0.8046]
[1751646295972,1.36735861,2484.9,2484.8,0.80462]
[1751646296569,2.10675861,2484.9,2484.8,0.80462]
[1751646297276,1.36735861,2484.9,2484.8,0.80462]
[1751646297468,0.7394,2485.1,2485.0,0.80455]
[1751646297668,2.10552479,2485.1,2485.0,0.80455]
[1751646298268,2.92145905,2485.1,2484.7,2.01161]
[1751646298464,0.80464,2484.8,2484.6,12.131]
[1751646298670,1.4058,2485.0,2484.3,0.7929]
[1751646298870,1.36247191,2484.9,2484.3,2.80483]
[1751646299074,0.80466,2484.7,2484.6,0.80465]
[1751646299276,0.8047,2484.6,2484.5,0.8047]
[1751646299478,1.36247191,2484.6,2484.5,0.8047]
[1751646299674,2.16715191,2484.6,2484.5,0.8047]
[1751646299873,0.80473,2484.5,2484.4,0.80474]
[1751646300066,0.03419542,2484.5,2484.2,3.2078]
[1751646300271,0.80476,2484.4,2484.3,0.80476]
[1751646300473,0.80459542,2484.5,2484.4,0.80475]
[1751646300671,2.9701754,2484.5,2484.4,0.80475]
[1751646301171,2.1654654,2484.5,2484.4,0.80475]
[1751646301975,1.40646966,2484.5,2484.4,0.80475]
[1751646302276,2.35727167,2485.3,2485.2,0.80449]
[1751646302475,1.36012843,2485.3,2485.2,0.80449]
[1751646303073,1.36012843,2485.3,2484.9,0.7803]
[1751646303380,1.36012843,2485.2,2485.1,0.80452]
[1751646304377,3.2078,2485.5,2485.4,0.80442]
[1751646304675,1.35950037,2485.5,2485.4,0.80442]
[1751646305077,3.2078,2485.9,2485.8,0.80429]
[1751646305274,3.2078,2486.3,2485.8,2.01074]
[1751646305480,2.33414,2486.6,2486.1,3.2078]
[1751646305783,1.5301,2486.6,2486.5,0.80407]
[1751646306177,0.7443,2486.6,2486.5,0.80407]
[1751646306371,42.1836,2487.0,2486.2,3.31559]
[1751646306372,0.7858,2487.0,2486.9,0.80394]
[1751646306573,6.34450023,2487.1,2487.0,0.80391]
[1751646306777,3.2078,2487.1,2487.0,0.80391]
[1751646306975,5.56507122,2487.1,2487.0,0.80391]
[1751646307173,3.2078,2487.1,2487.0,0.80391]
[1751646307379,3.2078,2487.1,2486.7,1.3052]
[1751646307581,0.7443,2487.3,2486.8,12.125]
[1751646307774,0.80397,2486.9,2486.6,12.125]
[1751646307976,0.80397,2486.9,2486.6,14.22971]
[1751646308178,4.5591,2487.2,2486.5,4.01185]
[1751646308476,0.80402,2486.7,2486.5,4.01186]
[1751646308681,0.7877,2487.1,2486.5,3.2078]
[1751646308978,4.01165,2487.2,2486.9,0.80392]
[1751646309278,0.7443,2487.3,2487.0,3.2078]
[1751646309479,0.80386,2487.2,2487.0,4.5085]
[1751646309672,0.80387,2487.1,2487.0,4.5085]
[1751646309877,0.80387,2487.1,2487.0,3.2078]
[1751646310069,0.80394,2486.9,2486.6,3.9303]
[1751646310272,0.80397,2486.8,2486.7,13.4259]
[1751646310472,0.01768264,2486.8,2486.7,13.4259]
[1751646310680,0.01768264,2486.8,2486.7,14.2299]
[1751646311382,0.01768264,2486.8,2486.7,19.2299]
[1751646311579,0.01768264,2486.8,2486.7,7.1079]
[1751646311783,0.32778264,2487.3,2486.7,2.10788]
[1751646311977,0.80397,2486.8,2486.7,1.3039]
[1751646312173,0.80396,2486.9,2486.7,14.22989]
[1751646312379,0.80396,2486.9,2486.8,2.10787]
[1751646312583,0.80396,2486.9,2486.8,1.3039]
[1751646312778,4.89348264,2487.3,2486.9,0.80394]
[1751646313084,0.80386,2487.2,2487.0,0.8039]
[1751646313280,0.80387,2487.1,2487.0,1.4047]
[1751646313680,0.80391,2487.0,2486.9,16.13173]
[1751646313883,0.80391,2487.0,2486.9,17.53643]
[1751646314080,0.80391,2487.0,2486.9,4.6125]
[1751646314482,0.80391,2487.0,2486.9,3.2078]
[1751646314676,5.54514264,2487.3,2486.6,0.7225]
[1751646314885,0.80407,2486.5,2486.4,3.2078]
[1751646315184,3.2078,2486.7,2486.1,12.12]
[1751646315480,5.21785,2486.7,2486.2,13.5247]
[1751646315681,0.80409,2486.5,2486.3,0.8041]
[1751646315881,0.80407,2486.5,2486.4,1.4047]
[1751646316279,0.80416,2486.2,2486.1,3.2078]
[1751646316591,2.01026,2486.4,2485.8,1.4277]
[1751646316886,0.80419,2486.2,2485.8,13.5287]
[1751646317080,0.753,2486.5,2486.2,0.80414]
[1751646317275,1.3321468,2486.4,2485.8,16.7365]
[1751646317581,0.753,2486.5,2485.8,4.6355]
[1751646317582,0.8042,2486.1,2485.8,4.6355]
[1751646317782,0.8041,2486.4,2486.3,0.80413]
[1751646318281,0.80418,2486.2,2486.1,0.80418]
[1751646318587,2.01027,2486.4,2485.8,15.3088]
[1751646318784,1.32944233,2486.3,2485.8,15.3088]
[1751646319086,2.76318,2486.5,2485.9,3.43833]
[1751646319087,0.753,2486.5,2485.9,3.43833]
[1751646319275,0.80418,2486.2,2486.1,0.80418]
[1751646319477,0.80411,2486.4,2486.2,0.80416]
[1751646319985,0.80413,2486.3,2486.2,0.80416]
[1751646320180,1.3323,2486.6,2486.1,2.0105]
[1751646320381,1.3323,2486.6,2486.5,0.80407]
[1751646320582,3.2078,2486.7,2486.6,0.80404]
[1751646320784,4.53805655,2486.7,2486.6,0.80404]
[1751646321085,1.33025655,2486.7,2486.6,0.80404]
[1751646321282,3.2078,2487.1,2487.0,0.80391]
[1751646321486,4.5388718,2487.1,2487.0,0.80391]
[1751646323785,1.3310718,2487.1,2487.0,0.80391]
[1751646323980,3.9259,2487.5,2487.4,0.80378]
[1751646324188,6.61411055,2487.5,2487.4,0.80378]
[1751646324389,5.23211055,2487.5,2487.4,0.80378]
[1751646324689,2.02431055,2487.5,2487.4,0.80378]
[1751646325184,1.30621055,2487.5,2487.4,0.80378]
[1751646326181,3.2078,2487.8,2487.7,0.80368]
[1751646326381,4.5099096,2487.8,2487.7,0.80368]
[1751646326581,1.3021096,2487.8,2487.7,0.80368]
[1751646326992,2.1057696,2487.8,2487.7,0.80368]
[1751646327183,0.8037,2487.7,2487.6,0.80371]
[1751646327380,1.3021096,2487.7,2487.6,0.80371]
[1751646327580,2.1057896,2487.7,2487.6,0.80371]
[1751646327783,2.1057896,2487.7,2487.4,3.2078]
[1751646327784,0.80375,2487.5,2487.4,3.2078]
[1751646327992,2.10013769,2487.5,2487.4,3.2078]
[1751646328391,2.10013769,2487.5,2487.3,0.8038]
[1751646328392,0.80379,2487.4,2487.3,0.8038]
[1751646328598,1.78205302,2487.4,2486.9,18.65804]
[1751646328795,0.49369,2487.4,2487.3,0.78846435]
[1751646329182,1.78235281,2487.4,2487.3,0.78846435]
[1751646329382,1.28866281,2487.4,2486.9,3.2078]
[1751646329594,3.2078,2487.2,2486.6,3.2078]
[1751646329791,0.80396,2486.9,2486.8,0.80394]
[1751646329987,0.804,2486.8,2486.7,0.804]
[1751646330293,2.09266281,2486.8,2486.7,0.804]
[1751646331091,1.28866281,2486.8,2486.7,0.804]
[1751646331391,1.30178802,2486.8,2486.7,0.804]
[1751646332487,1.30724038,2486.8,2486.7,0.804]
[1751646332688,2.11121038,2486.8,2486.7,0.804]
[1751646332892,1.30724038,2486.8,2486.7,0.804]
[1751646333788,1.31267979,2486.8,2486.6,4.01181]
[1751646333995,2.09266281,2486.7,2486.6,4.01181]
[1751646334195,1.28866281,2486.7,2486.6,4.01181]
[1751646334387,1.28866281,2486.7,2486.4,1.3744]
[1751646334586,0.80408,2486.5,2486.4,0.80407]
[1751646334792,0.8041,2486.4,2486.3,4.01193]
[1751646335088,2.12223215,2486.4,2486.3,4.01193]
[1751646335293,2.12223215,2486.4,2486.3,3.2078]
[1751646335592,2.12223215,2486.4,2486.0,57.905]
[1751646335593,1.31813215,2486.4,2485.9,3.2078]
[1751646335794,1.28866281,2486.3,2486.2,0.80417]
[1751646335989,2.12226215,2486.3,2486.2,0.80417]
[1751646336196,2.12770156,2486.3,2486.2,0.80417]
[1751646336597,0.8042,2486.2,2486.1,0.80418]
[1751646336786,2.09286281,2486.2,2486.1,0.80418]
[1751646337294,2.13260001,2486.2,2486.1,0.80418]
[1751646337496,1.32840001,2486.2,2486.1,0.80418]
[1751646337797,2.13257001,2486.2,2486.1,0.80418]
[1751646338292,1.32840001,2486.2,2486.1,0.80418]
[1751646338492,0.80402,2486.7,2486.3,2.01031]
[1751646338690,0.80407,2486.5,2486.4,2.88579]
[1751646338890,0.80407,2486.5,2486.4,0.80409]
[1751646339098,0.80412,2486.4,2486.3,0.80411]
[1751646339595,0.80417,2486.2,2486.1,3.2078]
[1751646339791,5.21806,2486.4,2485.8,3.9837]
[1751646340092,2.01066,2485.9,2485.1,17.31809]
[1751646340285,0.80439,2485.6,2485.5,0.80439]
[1751646340490,0.80436,2485.7,2485.6,0.80433]
[1751646340800,0.80439,2485.6,2485.5,0.80437]
[1751646341193,0.80443,2485.4,2485.3,2.10472]
[1751646341595,0.80447,2485.3,2485.2,0.80446]
[1751646341791,0.80442,2485.5,2485.4,0.80441]
[1751646341986,0.7296,2485.7,2485.1,5.21909]
[1751646342189,0.7296,2485.7,2485.2,1.3003]
[1751646342396,0.80442,2485.5,2485.4,0.80441]
[1751646343090,0.80449,2485.2,2485.1,4.0123]
[1751646343398,0.80451,2485.2,2485.1,0.80452]
[1751646343895,0.81697743,2485.2,2485.1,0.80452]
[1751646344296,0.01246743,2485.2,2485.1,0.80452]
[1751646344798,0.80453,2485.1,2485.0,0.80453]
[1751646344996,0.80454,2485.1,2485.0,0.80454]
[1751646345197,0.8220621,2485.1,2485.0,0.80454]
[1751646345397,0.80457,2485.0,2484.9,0.80457]
[1751646345595,0.8220521,2485.1,2485.0,0.80455]
[1751646345899,0.0175221,2485.1,2485.0,0.80455]
[1751646346291,0.02257677,2485.1,2484.8,3.2078]
[1751646346493,0.02257677,2485.1,2485.0,0.80455]
[1751646346900,3.2078,2485.5,2484.9,3.31532]
[1751646347101,3.2078,2485.6,2485.5,0.80439]
[1751646347697,0.7296,2485.7,2485.6,0.80436]
[1751646347895,1.57661,2485.8,2485.7,0.80433]
[1751646348095,3.2078,2485.9,2485.8,0.80429]
[1751646348696,3.2078,2485.9,2485.7,0.8043]
[1751646348899,0.80433,2485.8,2485.7,0.8043]
[1751646349595,0.80435,2485.7,2485.5,1.3039]
[1751646349996,0.8171693,2485.6,2485.5,2.10827]
[1751646350299,0.8171693,2485.6,2485.5,0.80437]
[1751646351100,0.82491377,2485.6,2485.5,0.80437]
[1751646351802,0.02055377,2485.6,2485.5,0.80437]
[1751646351998,0.02055377,2485.6,2485.5,2.21857]
[1751646352198,0.80431,2485.8,2485.7,0.77687859]
[1751646359711,0.80428,2486.0,2485.9,0.80423]
[1751646359904,1.56782,2486.1,2486.0,0.80423]
[1751646360105,0.8042,2486.2,2486.1,0.8042]
[1751646360308,1.53662,2486.4,2486.3,0.80413]
[1751646360509,0.8184141,2486.4,2486.3,0.80413]
[1751646360709,0.8184141,2486.4,2485.9,5.21846]
[1751646360710,2.0245941,2486.4,2486.0,2.1252]
[1751646360911,0.8042,2486.2,2486.1,0.80417]
[1751646361213,0.0142941,2486.4,2486.3,0.80413]
[1751646361909,2.80382,2486.7,2486.1,0.7692]
[1751646362115,0.80417,2486.3,2486.2,0.80413]
[1751646362412,3.2078,2486.8,2486.2,3.2078]
[1751646362619,4.01179,2486.8,2486.7,0.804]
[1751646362814,0.80403,2486.7,2486.6,0.80401]
[1751646363807,0.8041,2486.4,2486.3,0.8013]
[1751646364012,0.81690431,2486.4,2486.3,0.80413]
[1751646364315,0.80417,2486.3,2486.2,0.80414]
[1751646364706,0.80417,2486.3,2486.1,3.2078]
[1751646364707,0.80417,2486.2,2486.1,3.2078]
[1751646364910,0.80429,2485.8,2485.7,4.01209]
[1751646365311,0.80429,2485.8,2485.7,0.80429]
[1751646365517,2.01061,2486.0,2485.4,3.2078]
[1751646365811,3.38139,2485.9,2485.4,4.0122]
[1751646366014,0.80439,2485.5,2485.4,3.2078]
[1751646366519,0.82040569,2485.5,2485.4,4.01222]
[1751646367211,0.82040569,2485.5,2485.4,3.2078]
[1751646367613,0.8284332,2485.5,2485.4,3.2078]
[1751646368213,0.8284332,2485.5,2485.4,4.01222]
[1751646368412,0.0240432,2485.5,2485.4,4.01222]
[1751646368920,0.80428,2485.9,2485.8,0.77628556]
[1751646369212,0.7494,2486.3,2485.5,3.41578]
[1751646369420,0.80428,2485.9,2485.8,0.80426]
[1751646369824,0.80431,2485.8,2485.7,0.8043]
[1751646370517,0.80433,2485.7,2485.6,1.56054]
[1751646370715,2.01068,2485.9,2485.4,3.2078]
[1751646370915,0.80439,2485.5,2485.4,3.2078]
[1751646371716,0.80452,2485.1,2485.0,1.58915]
[1751646372313,0.80455,2485.0,2484.9,0.80456]
[1751646372523,0.80459,2484.9,2484.8,61.93939]
[1751646372712,0.80458,2485.0,2484.9,0.80456]
[1751646373114,0.80459,2484.9,2484.8,3.2078]
[1751646373313,0.80459,2484.9,2484.8,4.01242]
[1751646374616,0.80459,2484.9,2484.8,3.2078]
[1751646374921,0.80468,2484.6,2484.5,0.80472]
[1751646375120,0.80472,2484.5,2484.4,0.80473]
[1751646375422,0.80477,2484.4,2484.3,0.80476]
[1751646375623,0.80478,2484.4,2484.3,0.80477]
[1751646375824,3.2078,2484.6,2484.0,4.5678]
[1751646375825,0.80479,2484.3,2484.2,0.80478]
[1751646376421,0.01753114,2484.4,2483.7,14.976]
[1751646376623,0.02139322,2484.1,2484.0,0.80488]
[1751646377025,0.8301053,2484.1,2484.0,0.80488]
[1751646377220,0.80488,2484.0,2483.9,1.36]
[1751646377427,0.80494,2483.8,2483.7,2.33695]
[1751646377828,0.02911738,2483.8,2483.7,2.33695]
[1751646378231,0.02911738,2483.8,2483.7,3.76185]
[1751646379523,3.2078,2484.3,2484.2,0.80481]
[1751646380035,3.2078,2485.0,2484.9,0.80459]
[1751646380832,0.8046,2484.9,2484.8,0.80459]
[1751646381029,3.2078,2485.0,2484.9,0.80459]
[1751646382228,3.2194088,2485.0,2484.9,0.80459]
[1751646382424,3.2194088,2485.0,2484.9,1.57639]